[Event "January 9 Early 2024"]
[Site "https://www.chess.com"]
[Date "2024.01.11"]
[Round "3"]
[White "Jeet, Jain"]
[Black "Hnatyshyn, Anastasiia"]
[Result "1-0"]
[Board "252"]
[TimeControl "180+1"]
[WhiteFideId "5073022"]
[BlackFideId "14198339"]
[WhiteElo "2548"]
[BlackElo "2254"]
[WhiteTeam "IND"]
[BlackTeam "UKR"]
[WhiteClock "0:00:06"]
[BlackClock "0:00:06"]

1. c4 {[%clk 0:02:56]}  c6 {[%clk 0:02:59]} 2. Nc3 {[%clk 0:02:56]}  d5 {[%clk 0:02:59]} 3. cxd5 {[%clk 0:02:56]}  cxd5 {[%clk 0:03:00]} 4. d4 {[%clk 0:02:56]}  Nf6 {[%clk 0:02:59]} 5. Nf3 {[%clk 0:02:56]}  Nc6 {[%clk 0:02:57]} 6. Bf4 {[%clk 0:02:48]}  a6 {[%clk 0:02:55]} 7. e3 {[%clk 0:02:46]}  g6 {[%clk 0:02:52]} 8. h3 {[%clk 0:02:40]}  Bg7 {[%clk 0:02:53]} 9. Bd3 {[%clk 0:02:39]}  O-O {[%clk 0:02:53]} 10. a3 {[%clk 0:02:34]}  Bf5 {[%clk 0:02:50]} 11. Bxf5 {[%clk 0:02:34]}  gxf5 {[%clk 0:02:50]} 12. g4 {[%clk 0:02:34]}  Qd7 {[%clk 0:02:45]} 13. Rg1 {[%clk 0:02:27]}  fxg4 {[%clk 0:02:42]} 14. hxg4 {[%clk 0:02:27]}  Ne4 {[%clk 0:02:42]} 15. Nxe4 {[%clk 0:02:24]}  dxe4 {[%clk 0:02:42]} 16. Nd2 {[%clk 0:02:24]}  e5 {[%clk 0:02:40]} 17. dxe5 {[%clk 0:02:21]}  Nxe5 {[%clk 0:02:32]} 18. Bxe5 {[%clk 0:02:21]}  Bxe5 {[%clk 0:02:31]} 19. Nxe4 {[%clk 0:02:13]}  Qc6 {[%clk 0:02:23]} 20. Qb1 {[%clk 0:01:51]}  Rac8 {[%clk 0:02:15]} 21. Ng5 {[%clk 0:01:44]}  Qg6 {[%clk 0:02:11]} 22. Qxg6+ {[%clk 0:01:41]}  hxg6 {[%clk 0:02:12]} 23. Rb1 {[%clk 0:01:25]}  Rc2 {[%clk 0:02:11]} 24. a4 {[%clk 0:01:14]}  Rd8 {[%clk 0:02:01]} 25. Nf3 {[%clk 0:01:11]}  Bxb2 {[%clk 0:01:57]} 26. g5 {[%clk 0:01:05]}  Rd7 {[%clk 0:01:45]} 27. Rg4 {[%clk 0:01:03]}  a5 {[%clk 0:01:33]} 28. Kf1 {[%clk 0:00:42]}  Rdc7 {[%clk 0:01:07]} 29. Ne1 {[%clk 0:00:38]}  Rd2 {[%clk 0:01:00]} 30. Re4 {[%clk 0:00:24]}  Ba3 {[%clk 0:00:43]} 31. Nf3 {[%clk 0:00:20]}  Ra2 {[%clk 0:00:33]} 32. Rb5 {[%clk 0:00:18]}  Bb4 {[%clk 0:00:28]} 33. Nd4 {[%clk 0:00:17]}  Rxa4 {[%clk 0:00:21]} 34. Re8+ {[%clk 0:00:15]}  Kg7 {[%clk 0:00:20]} 35. f4 {[%clk 0:00:15]}  Ra1+ {[%clk 0:00:19]} 36. Kg2 {[%clk 0:00:14]}  Ra2+ {[%clk 0:00:16]} 37. Kf3 {[%clk 0:00:14]}  Be1 {[%clk 0:00:12]} 38. f5 {[%clk 0:00:14]}  Rf2+ {[%clk 0:00:12]} 39. Ke4 {[%clk 0:00:14]}  gxf5+ {[%clk 0:00:09]} 40. Nxf5+ {[%clk 0:00:15]}  Kh7 {[%clk 0:00:09]} 41. Nd6 {[%clk 0:00:09]}  a4 {[%clk 0:00:09]} 42. Rb1 {[%clk 0:00:05]}  Bc3 {[%clk 0:00:07]} 43. Rh1+ {[%clk 0:00:05]}  Kg7 {[%clk 0:00:07]} 44. Nf5+ {[%clk 0:00:05]}  Kg6 {[%clk 0:00:07]} 45. Rh6+ {[%clk 0:00:05]}  Kxg5 {[%clk 0:00:07]} 46. Rg8+ {[%clk 0:00:06]}  Bg7 {[%clk 0:00:06]} 47. Rxg7# {[%clk 0:00:06]} 1-0

[Event "January 9 Early 2024"]
[Site "https://www.chess.com"]
[Date "2024.01.11"]
[Round "3"]
[White "Caspi, Israel"]
[Black "Xu, Yi"]
[Result "0-1"]
[Board "255"]
[TimeControl "180+1"]
[WhiteFideId "2807394"]
[BlackFideId "8605564"]
[WhiteElo "2620"]
[BlackElo "2868"]
[WhiteTeam "ISR"]
[BlackTeam "CHN"]
[WhiteClock "0:00:04"]
[BlackClock "0:00:15"]

1. e4 {[%clk 0:03:00]}  c5 {[%clk 0:02:59]} 2. Nf3 {[%clk 0:03:00]}  Nc6 {[%clk 0:02:59]} 3. d4 {[%clk 0:03:00]}  cxd4 {[%clk 0:03:00]} 4. Nxd4 {[%clk 0:03:01]}  Nf6 {[%clk 0:03:00]} 5. Nc3 {[%clk 0:03:01]}  e6 {[%clk 0:03:00]} 6. Qd3 {[%clk 0:02:55]}  d6 {[%clk 0:02:45]} 7. Bg5 {[%clk 0:02:49]}  Bd7 {[%clk 0:02:44]} 8. O-O-O {[%clk 0:02:47]}  a6 {[%clk 0:02:42]} 9. f4 {[%clk 0:02:44]}  Be7 {[%clk 0:02:33]} 10. Nf3 {[%clk 0:02:40]}  h6 {[%clk 0:02:23]} 11. Bxf6 {[%clk 0:02:37]}  gxf6 {[%clk 0:02:22]} 12. Kb1 {[%clk 0:02:34]}  b5 {[%clk 0:02:22]} 13. g3 {[%clk 0:02:32]}  b4 {[%clk 0:02:19]} 14. Ne2 {[%clk 0:02:31]}  a5 {[%clk 0:02:19]} 15. Bh3 {[%clk 0:02:31]}  a4 {[%clk 0:02:14]} 16. f5 {[%clk 0:02:31]}  e5 {[%clk 0:02:11]} 17. Nc1 {[%clk 0:02:26]}  Na5 {[%clk 0:02:07]} 18. Bf1 {[%clk 0:02:23]}  Qb6 {[%clk 0:02:04]} 19. Be2 {[%clk 0:02:15]}  Rc8 {[%clk 0:01:53]} 20. Nd2 {[%clk 0:02:14]}  h5 {[%clk 0:01:47]} 21. h4 {[%clk 0:02:13]}  Bf8 {[%clk 0:01:43]} 22. Nf1 {[%clk 0:01:45]}  Bh6 {[%clk 0:01:25]} 23. Qxd6 {[%clk 0:01:36]}  Qxd6 {[%clk 0:01:24]} 24. Rxd6 {[%clk 0:01:36]}  Bc6 {[%clk 0:01:21]} 25. Bf3 {[%clk 0:01:23]}  Ke7 {[%clk 0:01:16]} 26. Rd3 {[%clk 0:01:22]}  Nc4 {[%clk 0:01:09]} 27. Rh2 {[%clk 0:01:06]}  a3 {[%clk 0:01:08]} 28. b3 {[%clk 0:01:03]}  Nb2 {[%clk 0:01:08]} 29. Nd2 {[%clk 0:00:54]}  Nxd3 {[%clk 0:00:47]} 30. Nxd3 {[%clk 0:00:53]}  Rhg8 {[%clk 0:00:46]} 31. Nf1 {[%clk 0:00:44]}  Bb5 {[%clk 0:00:43]} 32. Be2 {[%clk 0:00:40]}  Bxd3 {[%clk 0:00:38]} 33. Bxd3 {[%clk 0:00:40]}  Rgd8 {[%clk 0:00:33]} 34. Nd2 {[%clk 0:00:35]}  Bxd2 {[%clk 0:00:33]} 35. Rxd2 {[%clk 0:00:34]}  Rg8 {[%clk 0:00:33]} 36. Rg2 {[%clk 0:00:33]}  Rg7 {[%clk 0:00:34]} 37. Kc1 {[%clk 0:00:17]}  Rcg8 {[%clk 0:00:33]} 38. c3 {[%clk 0:00:15]}  Rxg3 {[%clk 0:00:32]} 39. Rd2 {[%clk 0:00:14]}  bxc3 {[%clk 0:00:32]} 40. Rd1 {[%clk 0:00:14]}  Rd8 {[%clk 0:00:31]} 41. Kc2 {[%clk 0:00:14]}  Rg2+ {[%clk 0:00:28]} 42. Kxc3 {[%clk 0:00:14]}  Rxa2 {[%clk 0:00:28]} 43. b4 {[%clk 0:00:12]}  Rb2 {[%clk 0:00:24]} 44. Ra1 {[%clk 0:00:12]}  Rc8+ {[%clk 0:00:20]} 45. Bc4 {[%clk 0:00:12]}  Rh2 {[%clk 0:00:18]} 46. b5 {[%clk 0:00:11]}  Rxh4 {[%clk 0:00:18]} 47. Kb4 {[%clk 0:00:09]}  Rxe4 {[%clk 0:00:18]} 48. Rc1 {[%clk 0:00:10]}  a2 {[%clk 0:00:17]} 49. Kb3 {[%clk 0:00:08]}  Rexc4 {[%clk 0:00:16]} 50. Ra1 {[%clk 0:00:08]}  Rc2 {[%clk 0:00:16]} 51. b6 {[%clk 0:00:07]}  R2c6 {[%clk 0:00:15]} 52. b7 {[%clk 0:00:05]}  Rb6+ {[%clk 0:00:15]} 53. Kxa2 {[%clk 0:00:05]}  Rxb7 {[%clk 0:00:15]} 54. Rh1 {[%clk 0:00:04]}  Ra8# {[%clk 0:00:15]} 0-1

[Event "January 9 Early 2024"]
[Site "https://www.chess.com"]
[Date "2024.01.11"]
[Round "3"]
[White "Mikhailovsky, Vladimir"]
[Black "Rietze, Clemens, Dr."]
[Result "1-0"]
[Board "256"]
[TimeControl "180+1"]
[WhiteFideId "34105414"]
[BlackFideId "24620351"]
[WhiteElo "2847"]
[BlackElo "2516"]
[WhiteTeam "RUS"]
[BlackTeam "GER"]
[WhiteClock "0:00:16"]
[BlackClock "0:00:21"]

1. e4 {[%clk 0:03:00]}  c5 {[%clk 0:02:59]} 2. c3 {[%clk 0:03:00]}  Nf6 {[%clk 0:02:58]} 3. e5 {[%clk 0:03:01]}  Nd5 {[%clk 0:02:59]} 4. Nf3 {[%clk 0:03:02]}  d6 {[%clk 0:02:55]} 5. Bb5+ {[%clk 0:03:02]}  Nc6 {[%clk 0:02:49]} 6. d4 {[%clk 0:02:53]}  cxd4 {[%clk 0:02:36]} 7. Qxd4 {[%clk 0:02:26]}  e6 {[%clk 0:02:27]} 8. exd6 {[%clk 0:02:21]}  Bxd6 {[%clk 0:02:24]} 9. Qxg7 {[%clk 0:02:17]}  Rf8 {[%clk 0:02:21]} 10. Nbd2 {[%clk 0:02:10]}  Bd7 {[%clk 0:01:45]} 11. Ne4 {[%clk 0:02:08]}  Be7 {[%clk 0:01:45]} 12. Bg5 {[%clk 0:02:04]}  Qb6 {[%clk 0:01:39]} 13. Bc4 {[%clk 0:01:18]}  O-O-O {[%clk 0:01:30]} 14. Bxe7 {[%clk 0:01:05]}  Ncxe7 {[%clk 0:01:25]} 15. O-O-O {[%clk 0:00:54]}  Nf5 {[%clk 0:01:15]} 16. Qg5 {[%clk 0:00:27]}  Rg8 {[%clk 0:01:09]} 17. Qd2 {[%clk 0:00:24]}  Rxg2 {[%clk 0:01:05]} 18. Bxd5 {[%clk 0:00:24]}  exd5 {[%clk 0:00:59]} 19. Qxd5 {[%clk 0:00:24]}  Be6 {[%clk 0:00:44]} 20. Qe5 {[%clk 0:00:15]}  Rgg8 {[%clk 0:00:29]} 21. Kb1 {[%clk 0:00:06]}  Qc7 {[%clk 0:00:26]} 22. Qxc7+ {[%clk 0:00:06]}  Kxc7 {[%clk 0:00:27]} 23. Nf6 {[%clk 0:00:03]}  Rh8 {[%clk 0:00:25]} 24. Ng5 {[%clk 0:00:02]}  h6 {[%clk 0:00:17]} 25. Nxe6+ {[%clk 0:00:02]}  fxe6 {[%clk 0:00:18]} 26. Ne4 {[%clk 0:00:03]}  Rhg8 {[%clk 0:00:16]} 27. Nc5 {[%clk 0:00:03]}  Rde8 {[%clk 0:00:15]} 28. Rhe1 {[%clk 0:00:04]}  Rg6 {[%clk 0:00:14]} 29. Nd3 {[%clk 0:00:04]}  Nh4 {[%clk 0:00:14]} 30. Nf4 {[%clk 0:00:04]}  Rf6 {[%clk 0:00:13]} 31. Nd5+ {[%clk 0:00:05]}  exd5 {[%clk 0:00:13]} 32. Rxe8 {[%clk 0:00:06]}  Rxf2 {[%clk 0:00:14]} 33. Rxd5 {[%clk 0:00:06]}  Rf1+ {[%clk 0:00:14]} 34. Kc2 {[%clk 0:00:06]}  Rf2+ {[%clk 0:00:14]} 35. Rd2 {[%clk 0:00:06]}  Rf7 {[%clk 0:00:14]} 36. Re4 {[%clk 0:00:06]}  Ng6 {[%clk 0:00:14]} 37. Rde2 {[%clk 0:00:06]}  b6 {[%clk 0:00:13]} 38. Re6 {[%clk 0:00:06]}  Nf4 {[%clk 0:00:13]} 39. Re7+ {[%clk 0:00:07]}  Rxe7 {[%clk 0:00:12]} 40. Rxe7+ {[%clk 0:00:07]}  Kc6 {[%clk 0:00:13]} 41. Rxa7 {[%clk 0:00:08]}  Nd5 {[%clk 0:00:13]} 42. Rh7 {[%clk 0:00:08]}  Kc5 {[%clk 0:00:13]} 43. Rxh6 {[%clk 0:00:08]}  Nf4 {[%clk 0:00:14]} 44. Rh4 {[%clk 0:00:07]}  Ng6 {[%clk 0:00:14]} 45. Rg4 {[%clk 0:00:07]}  Ne7 {[%clk 0:00:14]} 46. Rg5+ {[%clk 0:00:08]}  Kd6 {[%clk 0:00:14]} 47. h4 {[%clk 0:00:09]}  Ke6 {[%clk 0:00:14]} 48. h5 {[%clk 0:00:09]}  Kf6 {[%clk 0:00:15]} 49. Rb5 {[%clk 0:00:10]}  Nc8 {[%clk 0:00:15]} 50. a4 {[%clk 0:00:10]}  Kg7 {[%clk 0:00:15]} 51. b4 {[%clk 0:00:10]}  Kh6 {[%clk 0:00:16]} 52. a5 {[%clk 0:00:11]}  bxa5 {[%clk 0:00:16]} 53. bxa5 {[%clk 0:00:11]}  Ne7 {[%clk 0:00:16]} 54. a6 {[%clk 0:00:12]}  Nc8 {[%clk 0:00:15]} 55. Rb8 {[%clk 0:00:12]}  Nd6 {[%clk 0:00:15]} 56. Rb6 {[%clk 0:00:12]}  Kxh5 {[%clk 0:00:16]} 57. Rxd6 {[%clk 0:00:13]}  Kg4 {[%clk 0:00:17]} 58. a7 {[%clk 0:00:14]}  Kf3 {[%clk 0:00:18]} 59. a8=Q+ {[%clk 0:00:14]}  Ke2 {[%clk 0:00:19]} 60. Qe4+ {[%clk 0:00:14]}  Kf2 {[%clk 0:00:19]} 61. Rf6+ {[%clk 0:00:15]}  Kg3 {[%clk 0:00:20]} 62. Rf3+ {[%clk 0:00:15]}  Kh2 {[%clk 0:00:20]} 63. Qe2+ {[%clk 0:00:15]}  Kg1 {[%clk 0:00:21]} 64. Rf2 {[%clk 0:00:16]} 1-0

[Event "January 9 Early 2024"]
[Site "https://www.chess.com"]
[Date "2024.01.11"]
[Round "3"]
[White "Kochiev, Ivan"]
[Black "Llari, Marc"]
[Result "1-0"]
[Board "258"]
[TimeControl "180+1"]
[WhiteFideId "2917890"]
[BlackFideId "651044269"]
[WhiteElo "2559"]
[BlackElo "2296"]
[WhiteTeam "BUL"]
[BlackTeam "FRA"]
[WhiteClock "0:00:09"]
[BlackClock "0:00:11"]

1. e4 {[%clk 0:03:00]}  e6 {[%clk 0:02:56]} 2. d4 {[%clk 0:02:59]}  d5 {[%clk 0:02:57]} 3. Nd2 {[%clk 0:02:59]}  Nf6 {[%clk 0:02:55]} 4. e5 {[%clk 0:02:59]}  Nfd7 {[%clk 0:02:55]} 5. Bd3 {[%clk 0:03:00]}  c5 {[%clk 0:02:55]} 6. c3 {[%clk 0:03:01]}  Nc6 {[%clk 0:02:55]} 7. Ne2 {[%clk 0:03:01]}  b6 {[%clk 0:02:54]} 8. f4 {[%clk 0:02:59]}  a5 {[%clk 0:02:55]} 9. O-O {[%clk 0:02:58]}  Ba6 {[%clk 0:02:55]} 10. Nf3 {[%clk 0:02:58]}  Bxd3 {[%clk 0:02:54]} 11. Qxd3 {[%clk 0:02:59]}  Qc8 {[%clk 0:02:53]} 12. f5 {[%clk 0:02:54]}  Nd8 {[%clk 0:02:46]} 13. Nf4 {[%clk 0:02:49]}  cxd4 {[%clk 0:02:41]} 14. cxd4 {[%clk 0:02:48]}  Qc4 {[%clk 0:02:39]} 15. Qxc4 {[%clk 0:02:29]}  dxc4 {[%clk 0:02:40]} 16. fxe6 {[%clk 0:02:21]}  Nxe6 {[%clk 0:02:40]} 17. Nxe6 {[%clk 0:02:17]}  fxe6 {[%clk 0:02:40]} 18. Ng5 {[%clk 0:02:17]}  Ke7 {[%clk 0:02:33]} 19. Ne4 {[%clk 0:02:16]}  h6 {[%clk 0:02:28]} 20. Nd6 {[%clk 0:02:01]}  Nf6 {[%clk 0:02:01]} 21. Nxc4 {[%clk 0:01:49]}  Nd5 {[%clk 0:02:00]} 22. Ne3 {[%clk 0:01:43]}  Rd8 {[%clk 0:01:52]} 23. Nxd5+ {[%clk 0:01:42]}  Rxd5 {[%clk 0:01:52]} 24. Be3 {[%clk 0:01:43]}  Rd7 {[%clk 0:01:33]} 25. Rac1 {[%clk 0:01:41]}  Kd8 {[%clk 0:01:34]} 26. Rc6 {[%clk 0:01:39]}  Ke7 {[%clk 0:01:19]} 27. Rxb6 {[%clk 0:01:31]}  g5 {[%clk 0:01:13]} 28. Rf6 {[%clk 0:01:28]}  Bg7 {[%clk 0:01:11]} 29. Rfxe6+ {[%clk 0:01:22]}  Kf7 {[%clk 0:01:10]} 30. Red6 {[%clk 0:00:45]}  Rc7 {[%clk 0:01:08]} 31. Rbc6 {[%clk 0:00:43]}  Rb7 {[%clk 0:01:05]} 32. b3 {[%clk 0:00:42]}  a4 {[%clk 0:01:04]} 33. bxa4 {[%clk 0:00:43]}  Ra8 {[%clk 0:01:02]} 34. e6+ {[%clk 0:00:35]}  Ke8 {[%clk 0:01:00]} 35. d5 {[%clk 0:00:33]}  Bf8 {[%clk 0:00:56]} 36. Bc5 {[%clk 0:00:28]}  Bxd6 {[%clk 0:00:55]} 37. Bxd6 {[%clk 0:00:28]}  Rb1+ {[%clk 0:00:43]} 38. Kf2 {[%clk 0:00:28]}  Rb2+ {[%clk 0:00:36]} 39. Kf3 {[%clk 0:00:27]}  Rxa2 {[%clk 0:00:36]} 40. Bc5 {[%clk 0:00:26]}  Rb8 {[%clk 0:00:16]} 41. d6 {[%clk 0:00:19]}  Rxa4 {[%clk 0:00:08]} 42. d7+ {[%clk 0:00:08]}  Kd8 {[%clk 0:00:09]} 43. Bb6+ {[%clk 0:00:05]}  Ke7 {[%clk 0:00:08]} 44. Rc8 {[%clk 0:00:03]}  Ra3+ {[%clk 0:00:06]} 45. Kg4 {[%clk 0:00:02]}  Ra4+ {[%clk 0:00:03]} 46. Kh3 {[%clk 0:00:02]}  Ra3+ {[%clk 0:00:04]} 47. g3 {[%clk 0:00:02]}  Ra4 {[%clk 0:00:04]} 48. d8=Q+ {[%clk 0:00:02]}  Kxe6 {[%clk 0:00:05]} 49. Rxb8 {[%clk 0:00:02]}  Kf5 {[%clk 0:00:06]} 50. g4+ {[%clk 0:00:02]}  Rxg4 {[%clk 0:00:07]} 51. Qd7+ {[%clk 0:00:03]}  Ke4 {[%clk 0:00:07]} 52. Qxg4+ {[%clk 0:00:04]}  Kd3 {[%clk 0:00:08]} 53. Qh5 {[%clk 0:00:05]}  Kc2 {[%clk 0:00:09]} 54. Qxh6 {[%clk 0:00:06]}  Kb2 {[%clk 0:00:10]} 55. Qxg5 {[%clk 0:00:07]}  Ka2 {[%clk 0:00:10]} 56. Bd8 {[%clk 0:00:08]}  Ka1 {[%clk 0:00:11]} 57. Bf6+ {[%clk 0:00:08]}  Ka2 {[%clk 0:00:11]} 58. Qa5# {[%clk 0:00:09]} 1-0

[Event "January 9 Early 2024"]
[Site "https://www.chess.com"]
[Date "2024.01.11"]
[Round "3"]
[White "Popov, Konstantin"]
[Black "Javakhadze, Zurab"]
[Result "1-0"]
[Board "261"]
[TimeControl "180+1"]
[WhiteFideId "34137910"]
[BlackFideId "13603647"]
[WhiteElo "2911"]
[BlackElo "2698"]
[WhiteTeam "FID"]
[BlackTeam "GEO"]
[WhiteClock "0:00:38"]
[BlackClock "0:00:02"]

1. e4 {[%clk 0:03:00]}  e5 {[%clk 0:02:59]} 2. Nf3 {[%clk 0:03:00]}  Nc6 {[%clk 0:02:59]} 3. Bb5 {[%clk 0:03:01]}  a6 {[%clk 0:02:59]} 4. Ba4 {[%clk 0:03:01]}  Nf6 {[%clk 0:02:59]} 5. O-O {[%clk 0:03:01]}  Be7 {[%clk 0:02:59]} 6. d3 {[%clk 0:03:02]}  d6 {[%clk 0:02:56]} 7. c3 {[%clk 0:03:02]}  O-O {[%clk 0:02:56]} 8. Nbd2 {[%clk 0:03:02]}  Re8 {[%clk 0:02:48]} 9. Re1 {[%clk 0:03:03]}  Bf8 {[%clk 0:02:49]} 10. Nf1 {[%clk 0:03:03]}  b5 {[%clk 0:02:45]} 11. Bc2 {[%clk 0:03:02]}  d5 {[%clk 0:02:38]} 12. Qe2 {[%clk 0:03:01]}  dxe4 {[%clk 0:02:30]} 13. dxe4 {[%clk 0:03:00]}  Be6 {[%clk 0:02:31]} 14. Bg5 {[%clk 0:02:51]}  Bc4 {[%clk 0:02:11]} 15. Qd1 {[%clk 0:02:51]}  Qxd1 {[%clk 0:01:51]} 16. Rexd1 {[%clk 0:02:52]}  Be2 {[%clk 0:01:49]} 17. Rd2 {[%clk 0:02:52]}  Bxf3 {[%clk 0:01:49]} 18. gxf3 {[%clk 0:02:52]}  Rad8 {[%clk 0:01:34]} 19. a4 {[%clk 0:02:52]}  b4 {[%clk 0:01:31]} 20. Bd3 {[%clk 0:02:50]}  Ra8 {[%clk 0:01:21]} 21. Ne3 {[%clk 0:02:45]}  bxc3 {[%clk 0:01:19]} 22. bxc3 {[%clk 0:02:45]}  Nd7 {[%clk 0:01:17]} 23. Bxa6 {[%clk 0:02:34]}  Rxa6 {[%clk 0:01:11]} 24. Rxd7 {[%clk 0:02:34]}  f6 {[%clk 0:01:10]} 25. Bh4 {[%clk 0:02:31]}  Re7 {[%clk 0:00:49]} 26. Rd2 {[%clk 0:02:16]}  Re8 {[%clk 0:00:43]} 27. Nd5 {[%clk 0:02:15]}  Bd6 {[%clk 0:00:31]} 28. Bxf6 {[%clk 0:02:08]}  gxf6 {[%clk 0:00:24]} 29. Nxf6+ {[%clk 0:02:09]}  Kf7 {[%clk 0:00:25]} 30. Nxe8 {[%clk 0:02:09]}  Kxe8 {[%clk 0:00:26]} 31. Kf1 {[%clk 0:02:08]}  Na5 {[%clk 0:00:22]} 32. Rda2 {[%clk 0:02:08]}  Kd7 {[%clk 0:00:22]} 33. Ke2 {[%clk 0:02:08]}  Kc6 {[%clk 0:00:22]} 34. Rg1 {[%clk 0:02:09]}  Rb6 {[%clk 0:00:18]} 35. Kd3 {[%clk 0:01:59]}  Rb8 {[%clk 0:00:14]} 36. Rg7 {[%clk 0:01:55]}  Rf8 {[%clk 0:00:15]} 37. Ke2 {[%clk 0:01:54]}  h6 {[%clk 0:00:13]} 38. Rg6 {[%clk 0:01:52]}  Rh8 {[%clk 0:00:12]} 39. Kf1 {[%clk 0:01:46]}  h5 {[%clk 0:00:10]} 40. f4 {[%clk 0:01:46]}  Kc5 {[%clk 0:00:06]} 41. f5 {[%clk 0:01:41]}  Kc4 {[%clk 0:00:05]} 42. Rd2 {[%clk 0:01:25]}  Kxc3 {[%clk 0:00:03]} 43. Rd1 {[%clk 0:01:25]}  Kb4 {[%clk 0:00:02]} 44. Rd5 {[%clk 0:01:23]}  Kxa4 {[%clk 0:00:02]} 45. Kg2 {[%clk 0:01:21]}  Nc4 {[%clk 0:00:02]} 46. Kh3 {[%clk 0:01:20]}  Kb4 {[%clk 0:00:02]} 47. Kh4 {[%clk 0:01:18]}  Nb6 {[%clk 0:00:02]} 48. Rd1 {[%clk 0:01:18]}  Kc4 {[%clk 0:00:02]} 49. Kg5 {[%clk 0:01:17]}  Be7+ {[%clk 0:00:02]} 50. f6 {[%clk 0:01:17]}  Bd6 {[%clk 0:00:03]} 51. Kf5 {[%clk 0:01:15]}  Nd7 {[%clk 0:00:04]} 52. h4 {[%clk 0:01:12]}  Rf8 {[%clk 0:00:03]} 53. Rh6 {[%clk 0:01:08]}  Kc3 {[%clk 0:00:03]} 54. Rg1 {[%clk 0:01:04]}  Kd3 {[%clk 0:00:02]} 55. Rg7 {[%clk 0:01:03]}  Nc5 {[%clk 0:00:02]} 56. f3 {[%clk 0:01:01]}  Ke3 {[%clk 0:00:02]} 57. Rg3 {[%clk 0:00:57]}  Kf2 {[%clk 0:00:02]} 58. Rhg6 {[%clk 0:00:56]}  Nd7 {[%clk 0:00:03]} 59. Rg2+ {[%clk 0:00:56]}  Ke3 {[%clk 0:00:03]} 60. Ke6 {[%clk 0:00:53]}  Nc5+ {[%clk 0:00:04]} 61. Kd5 {[%clk 0:00:53]}  Nd7 {[%clk 0:00:04]} 62. Ke6 {[%clk 0:00:47]}  Nc5+ {[%clk 0:00:04]} 63. Kf5 {[%clk 0:00:48]}  Nd7 {[%clk 0:00:04]} 64. Rg1 {[%clk 0:00:41]}  Nc5 {[%clk 0:00:04]} 65. f4 {[%clk 0:00:41]}  Nb3 {[%clk 0:00:04]} 66. R1g3+ {[%clk 0:00:37]}  Kf2 {[%clk 0:00:01]} 67. Rxb3 {[%clk 0:00:38]}  exf4 {[%clk 0:00:02]} 68. e5 {[%clk 0:00:38]} 1-0

[Event "January 9 Early 2024"]
[Site "https://www.chess.com"]
[Date "2024.01.11"]
[Round "3"]
[White "Goryachkina, Aleksandra"]
[Black "Galchenko, Matvey"]
[Result "0-1"]
[Board "262"]
[TimeControl "180+1"]
[WhiteFideId "4147103"]
[BlackFideId "24175480"]
[WhiteElo "2661"]
[BlackElo "2898"]
[WhiteTeam "FID"]
[BlackTeam "FID"]
[WhiteClock "0:00:02"]
[BlackClock "0:00:05"]

1. e4 {[%clk 0:02:59]}  e6 {[%clk 0:02:59]} 2. d4 {[%clk 0:02:59]}  d5 {[%clk 0:02:59]} 3. Nd2 {[%clk 0:02:59]}  a6 {[%clk 0:02:59]} 4. exd5 {[%clk 0:02:57]}  exd5 {[%clk 0:03:00]} 5. Ngf3 {[%clk 0:02:57]}  Nf6 {[%clk 0:03:01]} 6. Bd3 {[%clk 0:02:57]}  c5 {[%clk 0:03:01]} 7. c3 {[%clk 0:02:50]}  Be7 {[%clk 0:03:00]} 8. O-O {[%clk 0:02:49]}  O-O {[%clk 0:03:00]} 9. dxc5 {[%clk 0:02:46]}  Bxc5 {[%clk 0:03:01]} 10. Nb3 {[%clk 0:02:45]}  Bb6 {[%clk 0:03:02]} 11. Nfd4 {[%clk 0:02:34]}  Nc6 {[%clk 0:03:01]} 12. Bf4 {[%clk 0:01:58]}  Re8 {[%clk 0:02:59]} 13. h3 {[%clk 0:01:44]}  Ne4 {[%clk 0:02:58]} 14. Re1 {[%clk 0:01:17]}  Qf6 {[%clk 0:02:55]} 15. Bxe4 {[%clk 0:00:53]}  dxe4 {[%clk 0:02:54]} 16. Qd2 {[%clk 0:00:52]}  Qg6 {[%clk 0:02:43]} 17. Bg3 {[%clk 0:00:46]}  Bd7 {[%clk 0:02:42]} 18. Rad1 {[%clk 0:00:42]}  Nxd4 {[%clk 0:02:32]} 19. Nxd4 {[%clk 0:00:41]}  Ba4 {[%clk 0:02:33]} 20. b3 {[%clk 0:00:38]}  Bd7 {[%clk 0:02:33]} 21. Qf4 {[%clk 0:00:35]}  Rac8 {[%clk 0:02:26]} 22. c4 {[%clk 0:00:31]}  Rcd8 {[%clk 0:02:10]} 23. Nc2 {[%clk 0:00:27]}  Bc6 {[%clk 0:01:21]} 24. Ne3 {[%clk 0:00:26]}  Ba5 {[%clk 0:01:03]} 25. Rf1 {[%clk 0:00:22]}  Rd3 {[%clk 0:00:59]} 26. Nf5 {[%clk 0:00:13]}  h5 {[%clk 0:00:53]} 27. Kh2 {[%clk 0:00:09]}  Bc3 {[%clk 0:00:46]} 28. Nh4 {[%clk 0:00:02]}  Qf6 {[%clk 0:00:40]} 29. Qxf6 {[%clk 0:00:02]}  Bxf6 {[%clk 0:00:41]} 30. Nf5 {[%clk 0:00:02]}  Red8 {[%clk 0:00:31]} 31. Ne3 {[%clk 0:00:01]}  Bg5 {[%clk 0:00:19]} 32. Rde1 {[%clk 0:00:01]}  Rd2 {[%clk 0:00:15]} 33. h4 {[%clk 0:00:01]}  Bf6 {[%clk 0:00:14]} 34. a4 {[%clk 0:00:02]}  Rb2 {[%clk 0:00:14]} 35. Rb1 {[%clk 0:00:02]}  Rdd2 {[%clk 0:00:14]} 36. Rxb2 {[%clk 0:00:02]}  Rxb2 {[%clk 0:00:15]} 37. Rd1 {[%clk 0:00:02]}  Rxb3 {[%clk 0:00:16]} 38. Nd5 {[%clk 0:00:02]}  Bxd5 {[%clk 0:00:06]} 39. cxd5 {[%clk 0:00:02]}  Kf8 {[%clk 0:00:05]} 40. d6 {[%clk 0:00:03]}  Rd3 {[%clk 0:00:06]} 41. Rb1 {[%clk 0:00:02]}  g5 {[%clk 0:00:03]} 42. hxg5 {[%clk 0:00:02]}  Bxg5 {[%clk 0:00:04]} 43. Rxb7 {[%clk 0:00:02]}  h4 {[%clk 0:00:05]} 44. Be5 {[%clk 0:00:03]}  f6 {[%clk 0:00:05]} 45. d7 {[%clk 0:00:02]}  fxe5 {[%clk 0:00:05]} 46. Rb8+ {[%clk 0:00:02]}  Ke7 {[%clk 0:00:05]} 0-1